bitfinex-derivatives/quotes_BTCF0:USTF0_20260131
["timestamp","ask_amount","ask_price","bid_price","bid_amount"]
[1769879314291,0.12539342,79750.0,79702.0,0.0041948]
[1769879314492,0.12539342,79750.0,79676.0,0.062851]
[1769879314493,0.37538381,79820.0,79745.0,0.012559]
[1769879314694,0.10156,79827.0,79734.0,0.062805]
[1769879314695,0.012543,79845.0,79773.0,0.012554]
[1769879314893,0.12539342,79834.0,79771.0,0.012555]
[1769879315197,0.012547,79822.0,79761.0,0.012556]
[1769879315395,0.012547,79823.0,79761.0,0.012556]
[1769879315595,0.012549,79809.0,79751.0,0.012558]
[1769879315788,0.012549,79809.0,79746.0,0.43172]
[1769879315789,0.00999999,79811.0,79762.0,0.12534077]
[1769879315994,8.126e-05,79764.0,79763.0,0.012556]
[1769879316195,0.10156,79817.0,79761.0,0.012556]
[1769879316394,0.02328547,79844.0,79781.0,0.012553]
[1769879316697,0.12532584,79855.0,79796.0,0.062756]
[1769879316902,0.01074247,79895.0,79837.0,0.012544]
[1769879317099,0.01074247,79912.0,79816.0,0.062741]
[1769879317291,1.01588,79971.0,79883.0,0.012537]
[1769879317292,0.12529365,79909.0,79883.0,0.012537]
[1769879317598,0.12426581,79884.0,79834.0,0.012545]
[1769879317795,0.12426581,79884.0,79823.0,0.13478397]
[1769879317796,0.062708,79858.0,79814.0,6.7e-07]
[1769879317991,0.10156,79857.0,79797.0,0.11121366]
[1769879318193,0.12516271,79857.0,79822.0,0.00965366]
[1769879318394,0.03613,79857.0,79823.0,0.33028]
[1769879318595,0.10156,79890.0,79840.0,0.012544]
[1769879318793,0.012532,79918.0,79863.0,0.01254]
[1769879318997,0.012533,79909.0,79864.0,0.10156]
[1769879319193,0.1252505,79898.0,79845.0,0.012543]
[1769879319393,0.12426581,79926.0,79831.0,0.164288]
[1769879319394,0.12426581,79849.0,79841.0,5e-07]
[1769879319606,0.10156,79861.0,79823.0,0.00014016]
[1769879319798,0.012541,79861.0,79823.0,0.00014016]
[1769879320096,0.00699999,79895.0,79825.0,0.00243278]
[1769879320301,0.062669,79908.0,79839.0,0.012544]
[1769879320503,0.12524265,79898.0,79842.0,0.00243278]
[1769879320703,0.12524265,79898.0,79823.0,0.06287516]
[1769879320704,0.10156,79915.0,79848.0,0.00243278]
[1769879320898,0.10156,79915.0,79843.0,0.10156]
[1769879320899,0.12520345,79897.0,79861.0,0.00243278]
[1769879321102,0.12426581,79885.0,79843.0,0.10156]
[1769879321301,0.062683,79890.0,79843.0,0.10156]
[1769879321596,0.062683,79890.0,79780.0,0.37538381]
[1769879321597,0.012545,79835.0,79823.0,1.6e-07]
[1769879321799,0.10156,79834.0,79769.0,0.00243278]
[1769879322002,0.062728,79833.0,79772.0,0.01498778]
[1769879322200,0.012547,79823.0,79772.0,0.00243278]
[1769879322499,0.012546,79830.0,79785.0,0.00269788]
[1769879322710,0.00011998,79829.0,79786.0,0.10156]
[1769879322895,0.00011998,79829.0,79761.0,0.00012611]
[1769879322896,0.00901917,79791.0,79750.0,0.005]
[1769879323098,0.00901917,79791.0,79695.0,0.00958261]
[1769879323099,0.062784,79762.0,79695.0,0.00958261]
[1769879323395,0.062784,79762.0,79685.0,0.10156]
[1769879323396,0.00901917,79737.0,79685.0,0.10156]
[1769879323595,0.00901917,79735.0,79685.0,0.10156]
[1769879323795,0.00901917,79735.0,79687.0,0.012568]
[1769879323796,0.012561,79735.0,79687.0,0.012568]
[1769879324007,0.38793681,79780.0,79691.0,0.00958261]
[1769879324008,0.00013709,79734.0,79691.0,0.00958261]
[1769879324308,0.0943489,79753.0,79724.0,0.012562]
[1769879324605,0.012554,79775.0,79726.0,0.012562]
[1769879324997,0.07358137,79760.0,79726.0,0.012562]
[1769879325198,0.07358137,79760.0,79725.0,0.114162]
[1769879325399,0.12553911,79759.0,79725.0,0.1016]
[1769879325800,0.12553911,79759.0,79707.0,0.012565]
[1769879325801,0.12413942,79752.0,79707.0,0.012565]
[1769879325994,0.00011949,79751.0,79714.0,0.012564]
[1769879326207,0.00999999,79792.0,79735.0,0.01256]
[1769879326502,0.012556,79765.0,79736.0,0.1016]
[1769879327101,0.012557,79760.0,79736.0,0.1016]
[1769879327306,0.012558,79752.0,79714.0,0.10164]
[1769879327502,0.062774,79774.0,79690.0,0.06284]
[1769879327503,0.012554,79776.0,79730.0,0.012561]
[1769879327696,0.00999999,79800.0,79754.0,0.012557]
[1769879327900,0.10164,79806.0,79771.0,0.012555]
[1769879328098,0.012545,79832.0,79782.0,0.012553]
[1769879328305,0.12413942,79819.0,79769.0,0.012555]
[1769879328497,0.26207555,79805.0,79759.0,0.012557]
[1769879328703,0.012552,79792.0,79755.0,0.10164]
[1769879328899,0.12538713,79804.0,79755.0,0.10164]
[1769879329102,0.012556,79767.0,79728.0,0.012561]
[1769879329303,0.012556,79761.0,79725.0,0.10164]
[1769879329497,0.10164,79770.0,79725.0,0.10164]
[1769879329498,0.012558,79753.0,79725.0,0.10164]
[1769879330005,0.012558,79753.0,79595.0,0.3696247]
[1769879330006,0.01256,79737.0,79697.0,0.10164]
[1769879330206,0.12534155,79752.0,79697.0,0.10164]
[1769879330207,0.12534155,79752.0,79717.0,0.012563]
[1769879330412,0.01003569,79764.0,79705.0,0.012565]
[1769879330702,0.0236005,79736.0,79705.0,0.012565]
[1769879330906,0.012555,79771.0,79734.0,0.012561]
[1769879331210,0.12541622,79762.0,79726.0,0.012562]
[1769879331404,0.12541622,79762.0,79693.0,0.00013631]
[1769879331405,0.00015636,79761.0,79693.0,0.00013631]
[1769879331599,0.012561,79733.0,79693.0,0.01270331]
[1769879331803,0.012561,79734.0,79698.0,0.012566]
[1769879332003,0.03899439,79732.0,79693.0,0.00013631]
[1769879332299,0.01010348,79731.0,79693.0,0.00013631]
[1769879332500,0.00901917,79689.0,79617.0,0.00958261]
[1769879332802,0.012569,79683.0,79625.0,0.00958261]
[1769879333203,0.012569,79679.0,79637.0,0.012576]
[1769879333409,0.15670059,79682.0,79647.0,0.012574]
[1769879333601,0.00901917,79696.0,79620.0,0.062895]
[1769879333602,0.00012147,79681.0,79637.0,0.062881]
[1769879333907,0.0066196,79678.0,79637.0,0.012576]
[1769879334104,0.12413942,79671.0,79637.0,0.012576]
[1769879334305,0.12413942,79671.0,79504.0,0.61098244]
[1769879334306,0.00901917,79649.0,79590.0,0.00958261]
[1769879334503,0.12413942,79622.0,79588.0,0.012584]
[1769879334705,0.12413942,79599.0,79551.0,0.01259]
[1769879334905,0.012581,79605.0,79544.0,0.99]
[1769879334906,0.12413942,79568.0,79544.0,0.99]
[1769879335207,0.062914,79597.0,79511.0,0.10168]
[1769879335208,0.012589,79554.0,79511.0,0.10168]
[1769879335408,0.25972137,79553.0,79484.0,0.00958261]
[1769879335607,0.06442426,79553.0,79512.0,0.12561236]
[1769879335903,0.10168,79554.0,79505.0,0.10168]
[1769879335904,0.12575586,79552.0,79505.0,0.10168]
[1769879336107,0.10168,79554.0,79505.0,0.16610058]
[1769879336408,0.10168,79554.0,79475.0,0.40684]
[1769879336409,0.012596,79509.0,79431.0,0.00999999]
[1769879336611,0.062968,79529.0,79469.0,9.9e-07]
[1769879336811,0.10172,79535.0,79420.0,0.407]
[1769879336812,0.00901917,79507.0,79443.0,0.012607]
[1769879337007,0.08002008,79508.0,79462.0,0.012604]
[1769879337008,0.12573476,79508.0,79462.0,0.012604]
[1769879337309,0.12573476,79508.0,79429.0,0.063046]
[1769879337310,0.0126,79485.0,79446.0,0.10176]
[1769879337612,0.00013859,79484.0,79414.0,0.10176]
[1769879337813,0.09041624,79484.0,79421.0,0.01261]
[1769879338006,0.09041624,79484.0,79425.0,0.12578774]
[1769879338007,0.21620398,79484.0,79425.0,0.12578774]
[1769879338203,0.00867426,79480.0,79409.0,9.554e-05]
[1769879338411,0.012604,79461.0,79409.0,9.554e-05]
[1769879338608,0.14572534,79479.0,79411.0,0.00958261]
[1769879338908,0.37538381,79540.0,79461.0,0.00958261]
[1769879339115,0.37538381,79540.0,79460.0,0.02719878]
[1769879339116,0.062927,79581.0,79491.0,0.02218161]
[1769879339411,0.062921,79588.0,79474.0,0.00958261]
[1769879339412,0.14572534,79521.0,79474.0,0.00958261]
[1769879339711,0.12587324,79520.0,79463.0,0.12587324]
[1769879339912,0.012595,79517.0,79463.0,0.12587324]
[1769879340108,0.01964422,79519.0,79456.0,0.00958261]
[1769879340309,0.00284865,79516.0,79487.0,0.00148878]
[1769879340512,0.12579011,79518.0,79487.0,0.00148878]
[1769879340813,0.00901917,79523.0,79485.0,0.10184]
[1769879341112,0.00901917,79523.0,79464.0,0.33112]
[1769879341113,0.012599,79491.0,79446.0,0.00958261]
[1769879341314,4.656e-05,79454.0,79424.0,0.00958261]
[1769879341509,0.03607951,79523.0,79447.0,0.27018337]
[1769879341713,0.1257822,79509.0,79451.0,0.063028]
[1769879342011,0.1257822,79509.0,79448.0,0.33116]
[1769879342012,0.14015608,79538.0,79480.0,0.063006]
[1769879342211,0.08972,79576.0,79509.0,0.062983]
[1769879342410,0.062901,79613.0,79481.0,1.489205]
[1769879342411,0.1228099,79582.0,79544.0,0.012591]
[1769879342716,0.05286169,79604.0,79560.0,0.062942]
[1769879342915,0.05286169,79604.0,79561.0,0.33124]
[1769879343114,0.05286169,79604.0,79536.0,0.0631006]
[1769879343115,0.012582,79600.0,79524.0,0.012594]
[1769879343410,0.01016419,79612.0,79520.0,0.06349756]
[1769879343411,0.13264228,79626.0,79570.0,0.012586]
[1769879343616,0.13264228,79630.0,79598.0,0.012582]
[1769879343809,0.01016419,79675.0,79622.0,0.012578]
[1769879344010,0.012568,79690.0,79624.0,0.012578]
[1769879344210,0.00096417,79691.0,79632.0,0.012577]
[1769879344211,0.18474641,79668.0,79632.0,0.012577]
[1769879344405,0.00096417,79691.0,79631.0,0.012577]
[1769879344606,0.0103796,79666.0,79625.0,0.12560604]
[1769879344806,0.012574,79651.0,79585.0,0.012584]
[1769879345104,0.012574,79651.0,79573.0,0.062932]
[1769879345105,0.04162952,79650.0,79605.0,0.12555637]
[1769879345305,5.2e-07,79650.0,79614.0,0.062899]
[1769879345510,5.2e-07,79650.0,79613.0,0.062901]
[1769879345511,0.00096417,79671.0,79626.0,0.00958261]
[1769879345813,0.11603084,79640.0,79615.0,0.12555637]
[1769879346006,0.01266691,79639.0,79606.0,0.10188]
[1769879346204,0.0010372,79639.0,79606.0,0.10188]
[1769879346405,0.00096417,79671.0,79628.0,0.012577]
[1769879346615,0.10188,79687.0,79618.0,0.012579]
[1769879346616,8.8e-07,79638.0,79618.0,0.012579]
[1769879346812,0.00096417,79659.0,79625.0,0.012578]
[1769879347007,0.10188,79687.0,79626.0,0.06424191]
[1769879347218,0.012571,79668.0,79626.0,0.06424191]
[1769879347511,0.12558396,79666.0,79618.0,0.012579]
[1769879347712,4.869e-05,79667.0,79625.0,0.012578]
[1769879347915,7.3e-07,79666.0,79649.0,0.012574]
[1769879348114,0.06365682,79709.0,79650.0,0.10188]
[1769879348313,0.06365682,79709.0,79650.0,0.22744188]
[1769879348613,0.6862828,79714.0,79650.0,0.22744188]
[1769879348614,0.06365682,79701.0,79654.0,0.012573]
[1769879348819,0.012568,79690.0,79650.0,0.10188]
[1769879349312,0.06365682,79701.0,79652.0,0.012574]
[1769879349313,0.012566,79699.0,79652.0,0.012574]
[1769879349514,0.12550594,79689.0,79650.0,0.10188]
[1769879349716,0.012562,79726.0,79670.0,0.012571]
[1769879349915,0.012562,79726.0,79676.0,0.01257]
[1769879350110,0.12551854,79721.0,79684.0,0.012568]
[1769879350314,0.062788,79756.0,79694.0,0.012567]
[1769879350514,0.062788,79756.0,79683.0,0.06424191]
[1769879350515,0.012557,79757.0,79696.0,0.06424191]
[1769879350820,0.12551854,79760.0,79712.0,0.07680591]
[1769879351009,0.012556,79765.0,79712.0,0.07680591]
[1769879351210,0.062789,79755.0,79696.0,0.06424191]
[1769879351416,0.012556,79762.0,79713.0,0.1254288]
[1769879351619,0.04056,79764.0,79721.0,0.07680491]
[1769879351814,0.012553,79786.0,79728.0,0.06424191]
[1769879352017,0.012553,79786.0,79719.0,0.06424191]
[1769879352018,0.1254288,79763.0,79719.0,0.06424191]
[1769879352220,0.01255,79804.0,79743.0,0.06424191]
[1769879352519,0.17685447,79823.0,79720.0,0.062816]
[1769879352520,0.012549,79806.0,79756.0,0.06424191]
[1769879352714,0.012552,79791.0,79744.0,0.10184]
[1769879353021,0.11411947,79815.0,79744.0,0.10184]
[1769879353022,0.012547,79818.0,79761.0,0.07679791]
[1769879353211,0.11411947,79832.0,79763.0,0.06424191]
[1769879353519,0.11411947,79832.0,79762.0,0.062783]
[1769879353520,0.12534312,79826.0,79784.0,0.07679491]
[1769879353716,0.12534312,79826.0,79764.0,0.20532809]
[1769879353717,0.012547,79819.0,79764.0,0.15510309]
[1769879353922,0.012549,79810.0,79762.0,0.00016146]
[1769879354117,0.012548,79812.0,79763.0,0.012556]
[1769879354319,0.10184,79830.0,79786.0,0.00171309]
[1769879354516,0.70159626,79877.0,79802.0,0.00421488]
[1769879354517,0.012541,79858.0,79802.0,0.00421488]
[1769879354718,0.012541,79858.0,79830.0,0.00193841]
[1769879355025,0.01254,79867.0,79830.0,0.00193841]
[1769879355221,0.63890326,79877.0,79787.0,0.164563]
[1769879355222,0.012544,79841.0,79787.0,0.1018]
[1769879355415,0.012548,79817.0,79764.0,0.012556]
[1769879355619,0.012548,79817.0,79759.0,0.05824843]
[1769879355620,0.012549,79809.0,79759.0,0.05824843]
[1769879355824,0.012547,79819.0,79763.0,0.13782219]
[1769879356125,0.012545,79831.0,79775.0,0.012554]
[1769879356324,0.012549,79809.0,79764.0,0.12533605]
[1769879356524,0.012549,79809.0,79756.0,0.1018]
[1769879356724,0.16525147,79823.0,79773.0,0.012554]
[1769879356919,0.012545,79834.0,79787.0,0.012552]
[1769879357115,0.12533605,79822.0,79780.0,0.06424191]
[1769879357326,0.012543,79844.0,79796.0,0.012551]
[1769879357623,0.26938028,79862.0,79773.0,1.5e-07]
[1769879357624,0.16762028,79820.0,79773.0,1.5e-07]
[1769879357825,0.16762028,79820.0,79670.0,0.062856]
[1769879357826,0.012558,79752.0,79711.0,0.10176]
[1769879358017,0.062803,79737.0,79679.0,0.012569]
[1769879358222,0.062792,79751.0,79676.0,0.10176]
[1769879358223,0.012559,79742.0,79686.0,0.06424191]
[1769879358421,0.16255877,79751.0,79676.0,0.10176]
[1769879358422,0.03724,79751.0,79712.0,0.12531877]
[1769879358622,0.03724,79751.0,79704.0,0.06424191]
[1769879358822,0.12531877,79741.0,79704.0,0.06424191]
[1769879359018,0.11603084,79749.0,79705.0,0.12531877]
[1769879359219,0.00010037,79740.0,79702.0,0.012566]
[1769879359425,0.00010037,79740.0,79701.0,0.12542723]
[1769879359620,0.00010037,79740.0,79683.0,0.13811633]
[1769879359621,0.11603084,79721.0,79683.0,0.13811633]
[1769879359821,0.062808,79731.0,79665.0,0.012571]
[1769879359822,0.012565,79708.0,79665.0,0.012571]
[1769879360021,0.062819,79717.0,79657.0,0.07681491]
[1769879360227,0.00486264,79707.0,79667.0,0.012571]
[1769879360420,0.10176,79716.0,79691.0,3e-07]
[1769879360731,0.012566,79700.0,79657.0,0.06424191]
[1769879361025,0.00486264,79710.0,79651.0,0.06287]
[1769879361026,0.00015199,79699.0,79651.0,0.06287]
[1769879361327,0.00015199,79699.0,79641.0,0.062878]
[1769879361623,0.012567,79693.0,79639.0,0.06424191]
[1769879361829,0.1349132,79698.0,79667.0,0.012571]
[1769879362026,0.012564,79714.0,79675.0,0.01257]
[1769879362328,2.4e-07,79697.0,79689.0,0.012568]
[1769879362628,2.4e-07,79697.0,79664.0,0.06424191]
[1769879362629,0.16671334,79758.0,79721.0,0.012563]
[1769879363021,0.11603084,79745.0,79720.0,0.012563]
[1769879363219,0.10176,79768.0,79731.0,0.012561]
[1769879363524,7.6e-07,79751.0,79718.0,0.062817]
[1769879363731,0.10176,79800.0,79748.0,0.062794]
[1769879364034,0.012557,79759.0,79719.0,0.27405381]
[1769879364223,0.2086073,79778.0,79719.0,0.27405381]
[1769879364224,0.2086073,79778.0,79727.0,0.012562]
[1769879364528,0.012556,79762.0,79721.0,0.012563]
[1769879364725,0.012555,79769.0,79727.0,0.012562]
[1769879365024,0.012556,79763.0,79726.0,0.012562]
[1769879365219,0.21101597,79767.0,79720.0,0.12541622]
[1769879365425,0.012559,79744.0,79708.0,0.10176]
[1769879365721,0.012558,79751.0,79708.0,0.114325]
[1769879365919,0.21101597,79760.0,79709.0,0.12539499]
[1769879366319,0.01256,79738.0,79708.0,0.10176]
[1769879366532,0.12542409,79759.0,79684.0,0.10172]
[1769879366533,0.22150931,79734.0,79684.0,0.10172]
[1769879366731,0.062793,79750.0,79602.0,0.012581]
[1769879366732,0.22150931,79706.0,79648.0,0.10172]
[1769879367025,0.012573,79657.0,79620.0,0.407]
[1769879367234,0.012572,79664.0,79627.0,0.012578]
[1769879367428,0.012569,79683.0,79642.0,0.012575]
[1769879367623,0.00012389,79682.0,79642.0,0.06424191]
[1769879367826,0.012566,79700.0,79648.0,0.06424191]
[1769879368025,0.012566,79700.0,79660.0,0.012572]
[1769879368224,0.012566,79700.0,79643.0,0.24436401]
[1769879368225,0.012569,79684.0,79647.0,0.012574]
[1769879368427,0.12553036,79699.0,79643.0,0.10176]
[1769879368727,0.012569,79682.0,79644.0,0.012575]
[1769879369030,0.012569,79680.0,79644.0,0.012575]
[1769879369228,0.02580153,79681.0,79643.0,0.10176]
[1769879369426,0.00475594,79682.0,79652.0,0.012573]
[1769879369621,0.012568,79689.0,79652.0,0.012573]
[1769879370025,0.00097471,79687.0,79653.0,0.12552879]
[1769879370220,0.012564,79711.0,79672.0,0.01257]
[1769879370428,0.012561,79730.0,79677.0,0.06424191]
[1769879370627,0.012559,79742.0,79706.0,0.012565]
[1769879370827,0.06087,79737.0,79685.0,0.06424191]
[1769879371130,0.012561,79732.0,79695.0,0.012567]
[1769879371328,0.012561,79732.0,79687.0,0.12543667]
[1769879371329,0.012561,79734.0,79696.0,0.012567]
[1769879371631,0.111113,79737.0,79675.0,9.643e-05]
[1769879371930,0.16434084,79737.0,79687.0,0.012568]
[1769879372131,0.012562,79729.0,79688.0,0.012568]
[1769879372427,0.11603084,79732.0,79697.0,0.012566]
[1769879372635,0.11603084,79717.0,79689.0,0.12546106]
[1769879372928,0.11603084,79690.0,79675.0,9.643e-05]
[1769879373127,0.10176,79716.0,79675.0,9.643e-05]
[1769879373332,0.11603084,79705.0,79677.0,0.12546579]
[1769879373534,0.12546579,79712.0,79675.0,9.643e-05]
[1769879373835,0.10176,79716.0,79648.0,0.012574]
[1769879373836,0.11603084,79692.0,79648.0,0.012574]
[1769879374127,0.10176,79716.0,79643.0,0.10176]
[1769879374128,0.01257,79677.0,79643.0,0.10176]
[1769879374331,0.012571,79668.0,79643.0,0.10176]
[1769879374524,0.01418146,79676.0,79643.0,0.10176]
[1769879374725,0.01418146,79676.0,79610.0,0.01258]
[1769879374726,0.012574,79648.0,79610.0,0.01258]
[1769879374937,9.643e-05,79647.0,79607.0,0.06424191]
[1769879375232,9.643e-05,79647.0,79623.0,0.12548074]
[1769879375430,0.00189259,79646.0,79623.0,0.012578]
[1769879375625,0.11603084,79643.0,79612.0,0.01258]
[1769879375833,0.012575,79641.0,79612.0,0.01258]
[1769879376032,0.012575,79641.0,79608.0,0.12558238]
[1769879376235,0.012576,79636.0,79606.0,0.10176]
[1769879376428,0.00851678,79640.0,79612.0,0.01258]
[1769879376632,9.643e-05,79647.0,79608.0,0.12558475]
[1769879376834,9.643e-05,79647.0,79609.0,0.06424191]
[1769879377033,0.08609069,79646.0,79607.0,0.12558475]
[1769879377234,0.08609069,79646.0,79590.0,0.00010738]
[1769879377235,0.11603084,79633.0,79594.0,0.012583]
[1769879377433,0.08609069,79646.0,79590.0,0.00010738]
[1769879377434,0.012578,79625.0,79591.0,0.012583]
[1769879377631,0.02375833,79632.0,79596.0,0.012582]
[1769879377827,9.643e-05,79632.0,79608.0,0.01258]
[1769879378027,9.643e-05,79632.0,79613.0,0.01258]
[1769879378228,0.29714962,79664.0,79627.0,0.012578]
[1769879378434,0.29714962,79681.0,79627.0,0.012578]
[1769879378731,0.11603084,79654.0,79630.0,0.012577]
[1769879378938,0.012567,79694.0,79658.0,0.012572]
[1769879379128,0.29714962,79699.0,79658.0,0.012572]
[1769879379328,0.11603084,79676.0,79645.0,0.1018]
[1769879379535,0.06054514,79685.0,79638.0,0.24949665]
[1769879379536,0.012569,79682.0,79638.0,0.24949665]
[1769879379839,0.11603084,79680.0,79650.0,0.012574]
[1769879380036,0.11603084,79679.0,79650.0,0.012574]
[1769879380232,0.11603084,79673.0,79650.0,0.012574]
[1769879380438,0.11603084,79670.0,79650.0,0.012574]
[1769879380640,0.01609762,79678.0,79638.0,0.24949665]
[1769879380835,0.01609762,79678.0,79657.0,0.012573]
[1769879381035,0.12859784,79694.0,79662.0,0.012572]
[1769879381036,0.012567,79694.0,79662.0,0.012572]
[1769879381232,0.075369,79731.0,79644.0,0.1018]
[1769879381233,0.29962667,79697.0,79644.0,0.1018]
[1769879381436,0.012569,79680.0,79648.0,0.012574]
[1769879381637,0.01257,79675.0,79645.0,0.12553666]
[1769879381838,0.11603084,79682.0,79644.0,0.1018]
[1769879382136,0.11603084,79676.0,79644.0,0.1018]
[1769879382336,0.00283629,79681.0,79589.0,0.331]
[1769879382337,0.012574,79652.0,79625.0,0.1018]
[1769879382537,0.11603084,79652.0,79617.0,0.012579]
[1769879382737,0.29962667,79672.0,79624.0,0.12553351]
[1769879383037,0.012572,79662.0,79613.0,0.23959368]
[1769879383238,0.012574,79648.0,79619.0,0.12555243]
[1769879383443,0.012574,79653.0,79612.0,0.1018]
[1769879383644,0.1018,79675.0,79612.0,0.1018]
[1769879383645,0.012571,79672.0,79644.0,0.012575]
[1769879383841,0.1018,79702.0,79633.0,0.23959368]
[1769879383842,0.01257,79673.0,79646.0,0.012574]
[1769879384146,0.012567,79694.0,79663.0,0.012572]
[1769879384341,0.1018,79702.0,79662.0,0.012572]
[1769879384638,0.11603084,79689.0,79648.0,0.12553666]
[1769879384837,0.012571,79671.0,79648.0,0.12553666]
[1769879385042,0.012568,79688.0,79647.0,0.24224258]
[1769879385240,0.11603084,79688.0,79648.0,0.12552012]
[1769879385438,0.11603084,79683.0,79649.0,0.012574]
[1769879385632,0.012569,79681.0,79653.0,0.012573]
[1769879385838,0.012569,79681.0,79648.0,0.012574]
[1769879386145,0.114366,79702.0,79643.0,0.1018]
[1769879386146,0.11603084,79668.0,79643.0,0.1018]
[1769879386334,0.012571,79668.0,79643.0,0.1018]
[1769879386534,0.012572,79660.0,79629.0,0.012577]
[1769879386939,0.012573,79656.0,79629.0,0.13809948]
[1769879387138,0.012572,79663.0,79634.0,0.012576]
[1769879387334,0.01257,79674.0,79642.0,0.012575]
[1769879387538,0.012571,79670.0,79642.0,0.012575]
[1769879387733,0.012571,79671.0,79645.0,0.012575]
[1769879387933,0.012571,79671.0,79628.0,0.28286546]
[1769879387934,0.012569,79684.0,79651.0,0.012574]
[1769879388135,0.11603084,79687.0,79646.0,0.12553666]
[1769879388344,0.11603084,79687.0,79577.0,0.012585]
[1769879388345,0.012577,79629.0,79614.0,0.005]
[1769879388536,0.012577,79629.0,79578.0,0.062928]
[1769879388537,0.012584,79586.0,79564.0,0.1018]
[1769879388737,0.12850846,79583.0,79564.0,0.1018]
[1769879389043,0.012584,79589.0,79549.0,0.1767179]
[1769879389247,0.012585,79581.0,79551.0,0.012589]
[1769879389445,0.012583,79592.0,79560.0,0.012588]
[1769879389744,0.00010738,79591.0,79562.0,0.012588]
[1769879389943,0.00010738,79591.0,79560.0,0.012589]
[1769879390137,0.00010738,79591.0,79578.0,0.012586]
[1769879390344,0.00010738,79591.0,79582.0,0.012586]
[1769879390542,0.00010738,79591.0,79555.0,0.19024676]
[1769879390738,0.29962667,79626.0,79568.0,0.19013938]
[1769879390943,0.29962667,79626.0,79567.0,0.062943]
[1769879390944,0.012576,79644.0,79588.0,0.20272438]
[1769879391140,0.012576,79644.0,79575.0,0.062936]
[1769879391141,0.012578,79631.0,79600.0,0.012583]
[1769879391343,0.36251167,79641.0,79587.0,0.012585]
[1769879391643,0.36251167,79641.0,79569.0,0.22747287]
[1769879391644,0.01258,79622.0,79569.0,0.10684]
[1769879391951,0.012584,79592.0,79569.0,0.005]
[1769879392244,0.012581,79612.0,79570.0,0.12563524]
[1769879392443,0.012578,79633.0,79598.0,0.012583]
[1769879392640,0.12306896,79621.0,79608.0,0.012582]
[1769879392839,0.13821224,79638.0,79608.0,0.012582]
[1769879393047,0.012576,79644.0,79608.0,0.012582]
[1769879393347,0.012579,79626.0,79583.0,0.18937384]
[1769879393541,0.12560526,79637.0,79583.0,0.18937384]
[1769879393542,0.012578,79632.0,79583.0,0.18937384]
[1769879393741,0.012578,79632.0,79580.0,0.10184]
[1769879393742,0.062893,79632.0,79585.0,0.12560526]
[1769879394045,0.12560526,79631.0,79606.0,0.012582]
[1769879394247,0.012573,79664.0,79604.0,0.18629432]
[1769879394448,0.01257,79685.0,79592.0,0.062923]
[1769879394449,0.012571,79679.0,79648.0,0.012575]
[1769879394750,0.012573,79664.0,79632.0,0.012578]
[1769879394941,0.012575,79651.0,79613.0,0.10184]
[1769879395242,0.29962667,79649.0,79614.0,4.3e-07]
[1769879395442,0.29962667,79641.0,79585.0,0.18629432]
[1769879395647,0.01258,79619.0,79585.0,0.18629432]
[1769879395848,0.012582,79608.0,79599.0,4.3e-07]
[1769879396046,0.012581,79616.0,79584.0,0.005]
[1769879396242,0.29962667,79628.0,79573.0,0.10184]
[1769879396450,0.012585,79590.0,79573.0,0.10184]
[1769879396651,0.012585,79585.0,79573.0,0.10184]
[1769879396856,0.062918,79599.0,79564.0,0.10184]
[1769879397148,0.012587,79574.0,79551.0,0.22750129]
[1769879397353,0.06292,79597.0,79533.0,0.012593]
[1769879397354,0.062937,79575.0,79533.0,0.17854198]
[1769879397652,0.012586,79579.0,79513.0,0.10184]
[1769879397653,0.012593,79540.0,79513.0,0.10184]
[1769879398052,0.29962667,79566.0,79514.0,0.12566129]
[1769879398251,0.012589,79560.0,79520.0,0.18205217]
[1769879398553,0.012589,79561.0,79520.0,0.18205217]
[1769879398745,0.06161086,79577.0,79513.0,0.10184]
[1769879398946,0.012587,79576.0,79536.0,0.012593]
[1769879399149,0.125715,79576.0,79521.0,0.3312]
[1769879399347,0.01259,79556.0,79537.0,0.125715]
[1769879399551,0.012592,79546.0,79513.0,0.10184]
[1769879399752,0.012592,79541.0,79513.0,0.10184]
[1769879399952,0.012592,79541.0,79522.0,0.125715]
[1769879400148,0.012592,79541.0,79513.0,0.10184]
[1769879400350,0.012592,79541.0,79514.0,0.12574345]
[1769879400550,1.2248096,79868.0,79528.0,0.18451105]
[1769879400551,0.29962667,79585.0,79528.0,0.18451105]
[1769879400757,0.012594,79534.0,79514.0,0.45156367]
[1769879401056,0.012593,79537.0,79500.0,0.001]
[1769879401253,0.012592,79544.0,79515.0,0.12574345]
[1769879401458,0.012593,79536.0,79501.0,0.14284891]
[1769879401652,0.01259,79556.0,79504.0,0.18451105]
[1769879401852,0.29962667,79596.0,79523.0,0.18451105]
[1769879402153,0.29962667,79596.0,79506.0,0.062988]
[1769879402154,0.012586,79573.0,79536.0,0.18451105]
[1769879402350,0.012586,79573.0,79524.0,1.66784995]
[1769879402351,0.07109378,79580.0,79543.0,0.18290378]
[1769879402650,0.29962667,79613.0,79549.0,0.18290378]
[1769879402855,0.012582,79601.0,79556.0,0.18290378]
[1769879403058,0.0018959,79612.0,79566.0,0.18290378]
[1769879403359,0.012584,79585.0,79557.0,0.36577086]
[1769879403548,0.00947541,79600.0,79557.0,0.10188]
[1769879403748,0.00473875,79584.0,79545.0,0.10197345]
[1769879403954,0.012586,79575.0,79545.0,0.10197345]
[1769879404149,0.29962667,79585.0,79551.0,1.3e-07]
[1769879404356,0.012589,79555.0,79514.0,0.18005906]
[1769879404550,0.012589,79554.0,79514.0,0.18005906]
[1769879404751,0.29962667,79571.0,79524.0,0.012594]
[1769879404950,0.29962667,79571.0,79515.0,0.18005906]
[1769879405151,0.012589,79554.0,79515.0,0.18005906]
[1769879405454,0.01259,79546.0,79516.0,0.12571105]
[1769879405660,0.07110911,79553.0,79530.0,0.005]
[1769879405855,0.012588,79560.0,79530.0,0.10692]
[1769879406058,0.012587,79567.0,79531.0,0.12571105]
[1769879406250,0.012584,79589.0,79532.0,0.17305504]
[1769879406464,0.012584,79589.0,79531.0,0.26812875]
[1769879406465,0.29962667,79595.0,79531.0,0.26812875]
[1769879406763,0.29962667,79595.0,79488.0,0.17305504]
[1769879406764,0.31221567,79552.0,79508.0,0.012596]